fUSD/lending_fUSD_20250814
["ID","MTS","AMOUNT","RATE_DAILY","PERIOD"]
[379105473,1755143432085,-8683.67,0.00021308,2]
[379105474,1755143432094,-414.46,0.00021308,2]
[379105475,1755143432103,-299.99,0.00021308,7]
[379105476,1755143432115,-13078.51,0.00021308,2]
[379105477,1755143432124,-9999.99,0.00021308,2]
[379105479,1755143432133,-9999.99,0.00021308,2]
[379105481,1755143432143,-854.92,0.00021308,2]
[379105483,1755143432152,-151.0,0.00021313,2]
[379105484,1755143432163,-150.99,0.00021321,2]
[379105485,1755143432173,-8753.59,0.00021321,2]
[379105486,1755143432182,-999.99,0.00021321,2]
[379105487,1755143432196,-162.44,0.00021329,2]
[379105488,1755143432206,-151.0,0.00021332,2]
[379105489,1755143432218,-343.16800978,0.00021363,2]
[379105490,1755143432232,-294.26,0.00021363,2]
[379105491,1755143432244,-505.36205389,0.00021373,2]
[379105493,1755143432253,-500.0,0.00021373,2]
[379105494,1755143432263,-500.0,0.00021373,2]
[379105495,1755143432273,-168.0,0.00021616,2]
[379105496,1755143432283,-168.0,0.00021617,2]
[379105497,1755143432292,-168.0,0.00021948,2]
[379105498,1755143432302,-505.0,0.00022,2]
[379105499,1755143432311,-12032.639907,0.00022026,2]
[379105500,1755143432320,-494.0,0.00022041,2]
[379105501,1755143432329,-200.0,0.00022042,2]
[379105502,1755143432338,-300.0,0.00022042,2]
[379105503,1755143432347,-200.0,0.00022042,2]
[379105504,1755143432357,-200.0,0.00022042,2]
[379105505,1755143432366,-200.0,0.00022042,2]
[379105506,1755143432375,-200.0,0.00022042,2]
[379105507,1755143432384,-600.0,0.00022042,2]
[379105508,1755143432393,-200.0,0.00022042,2]
[379105509,1755143432403,-151.0,0.00022042,2]
[379105510,1755143432412,-200.0,0.00022042,2]
[379105511,1755143432421,-160.0,0.00022042,2]
[379105512,1755143432431,-151.0,0.00022042,2]
[379105513,1755143432440,-200.0,0.00022042,2]
[379105514,1755143432450,-151.0,0.00022042,2]
[379105515,1755143432459,-200.0,0.00022042,2]
[379105516,1755143432468,-200.0,0.00022042,2]
[379105517,1755143432478,-200.0,0.00022042,2]
[379105518,1755143432487,-200.0,0.00022042,2]
[379105519,1755143432496,-200.0,0.00022042,2]
[379105520,1755143432506,-200.0,0.00022042,2]
[379105521,1755143432515,-200.0,0.00022042,2]
[379105522,1755143432524,-200.0,0.00022042,2]
[379105523,1755143432534,-200.0,0.00022042,2]
[379105524,1755143432543,-200.0,0.00022042,2]
[379105525,1755143432553,-200.0,0.00022042,2]
[379105526,1755143432562,-200.0,0.00022042,2]
[379105527,1755143432571,-200.0,0.00022042,2]
[379105528,1755143432581,-151.0,0.00022042,2]
[379105529,1755143432591,-1386.78395259,0.00022042,2]
[379105530,1755143432600,-1200.0,0.00022052,2]
[379105531,1755143432610,-168.0,0.00022496,2]
[379105532,1755143432619,-600.0,0.0002259,2]
[379105533,1755143432629,-151.0,0.0002259,2]
[379105534,1755143432638,-1000.0,0.00022603,3]
[379105535,1755143432648,-250.0,0.00022603,2]
[379105536,1755143432657,-300.0,0.00022603,2]
[379105537,1755143432667,-287.61899177,0.00022677,2]
[379105538,1755143432677,-168.0,0.00022754,2]
[379105539,1755143432687,-250.0,0.0002309,2]
[379105540,1755143432697,-300.0,0.0002309,2]
[379105541,1755143432708,-1000.0,0.0002309,3]
[379105542,1755143432717,-1000.0,0.0002309,3]
[379105543,1755143432727,-300.0,0.0002309,2]
[379105544,1755143432736,-1200.0,0.0002328,2]
[379105545,1755143432745,-230.2775462,0.00023411,2]
[379105546,1755143432755,-160.0,0.00023411,2]
[379105548,1755143432764,-298.26089446,0.00024046,2]
[379105550,1755143432774,-500.0,0.0002435,2]
[379105552,1755143432783,-3173.0174,0.00024442,2]
[379105554,1755143432792,-297.5981,0.00024442,2]
[379105556,1755143432802,-648.0,0.00024542,2]
[379105558,1755143432811,-221.26,0.00024565,2]
[379105560,1755143432821,-198.44211254,0.00024617,2]
[379105562,1755143432831,-363.77049631,0.00024617,2]
[379105564,1755143432841,-7402.95020384,0.00024618,2]
[379105568,1755143432871,-990.74700018,0.00024618,2]
[379105572,1755143432896,-560.76353973,0.00024618,2]
[379105574,1755143432907,-1099.65424976,0.00024618,2]
[379105576,1755143432918,-693.10460756,0.00024618,2]
[379105604,1755143437698,-287.53315917,0.00020445,2]
[379105605,1755143437820,-734.10164783,0.00020445,2]
[379105606,1755143437831,-1402.67039893,0.00024618,2]
[379105607,1755143437841,-505.0,0.00024636,4]
[379105608,1755143437851,-1695.32508324,0.00024658,15]
[379105609,1755143437862,-304.67491676,0.00024658,15]
[379105610,1755143437872,-1000.0,0.00024658,2]
[379105611,1755143437881,-160.0,0.0002478,2]
[379105612,1755143437891,-571.5,0.00024889,2]
[379105613,1755143437900,-458.13769775,0.00025095,2]
[379105614,1755143437910,-160.0,0.00025095,2]
[379105615,1755143437920,-211.86673127,0.00025095,2]
[379105616,1755143437929,-3300.68435422,0.00025273,2]
[379105619,1755143438082,-1092.52502633,0.00025273,2]
[379105620,1755143438091,-608.87030517,0.00025311,6]
[379105621,1755143438101,-7044.746701,0.00025332,2]
[379105757,1755143439602,-415.90790011,0.00025332,2]
[379105759,1755143439613,-71612.60539889,0.00025332,2]
[379105761,1755143439622,-500.0,0.00025373,2]
[379105763,1755143439632,-500.0,0.00025373,2]
[379105765,1755143439641,-500.0,0.00025373,2]
[379105767,1755143439650,-500.0,0.00025373,2]
[379105769,1755143439659,-955.0,0.00025411,2]
[379105771,1755143439669,-309.29654756,0.00025415,2]
[379105773,1755143439677,-1024.42,0.00025493,2]
[379105775,1755143439687,-170.0,0.00025986,7]
[379105777,1755143439696,-425.0,0.0002601,2]
[379105779,1755143439704,-500.0,0.000261,2]
[379105781,1755143439714,-500.0,0.000261,2]
[379105783,1755143439723,-500.0,0.000261,2]
[379105785,1755143439732,-200.0,0.00026123,2]
[379105787,1755143439741,-160.0,0.00026149,2]
[379105789,1755143439751,-354.61,0.00026245,120]
[379105791,1755143439761,-1000.0,0.00026311,2]
[379105793,1755143439770,-302.66,0.00026342,2]
[379105795,1755143439779,-250.0,0.00026342,2]
[379105797,1755143439788,-5000.0,0.00026611,2]
[379105799,1755143439798,-320.74051982,0.00026784,2]
[379105801,1755143439807,-168.12,0.00026826,2]
[379105803,1755143439816,-4393.2093805,0.00026957,2]
[379105805,1755143439825,-3597.81,0.00027123,2]
[379105807,1755143439836,-250.80361079,0.00027151,2]
[379105809,1755143439845,-505.0,0.00027273,7]
[379105811,1755143439854,-302.66,0.0002733,2]
[379105813,1755143439863,-150.0,0.00027397,2]
[379105815,1755143439872,-463.96,0.00027397,2]
[379105817,1755143439881,-150.04,0.00027397,2]
[379105819,1755143439890,-160.0,0.00027518,2]
[379105821,1755143439899,-11241.29,0.00027709,2]
[379105823,1755143439908,-150.84,0.00027931,2]
[379105825,1755143439917,-168.12,0.00027933,2]
[379105827,1755143439926,-211.86673127,0.00028,10]
[379105829,1755143439935,-332.60791905,0.00028153,2]
[379105831,1755143439945,-150.84,0.0002821,2]
[379105833,1755143439954,-302.66,0.00028318,2]
[379105835,1755143439963,-4393.2093805,0.00028642,2]
[379105837,1755143439972,-150.0,0.00028767,2]
[379105839,1755143439982,-160.0,0.00028887,2]
[379105841,1755143439991,-168.12,0.0002904,2]
[379105843,1755143440001,-302.66,0.00029306,2]
[379105845,1755143440010,-180.55,0.00029475,2]
[379105847,1755143440021,-264.8424049,0.00029522,2]
[379105849,1755143440030,-354.61,0.00029526,120]
[379105851,1755143440039,-1000.0,0.000296,2]
[379105853,1755143440048,-571.5,0.00029791,2]
[379105855,1755143440057,-505.0,0.00029909,9]
[379105857,1755143440066,-150.0,0.00030136,2]
[379105859,1755143440076,-168.12,0.00030147,2]
[379105861,1755143440085,-160.0,0.00030256,2]
[379105863,1755143440094,-302.66,0.00030294,2]
[379105865,1755143440103,-3369.0,0.00031061,2]
[379105867,1755143440113,-2028.0,0.00031061,2]
[379105869,1755143440123,-810.0,0.00031061,2]
[379105871,1755143440132,-1259.473,0.00031061,2]
[379105873,1755143440141,-1655.0,0.00031061,2]
[379105875,1755143440150,-1296.0,0.00031061,2]
[379105877,1755143440159,-568.511,0.00031061,2]
[379105879,1755143440169,-982.0,0.00031061,2]
[379105881,1755143440178,-598.838,0.00031061,2]
[379105883,1755143440187,-4149.0,0.00031061,2]
[379105885,1755143440196,-6086.0,0.00031061,2]
[379105887,1755143440205,-21478.0,0.00031061,2]
[379105889,1755143440214,-250.35,0.00031148,30]
[379105891,1755143440223,-168.12,0.00031254,2]
[379105893,1755143440232,-165.55,0.00031444,2]
[379105895,1755143440241,-150.0,0.00031506,2]
[379105897,1755143440251,-300.0,0.0003159,2]
[379105899,1755143440260,-160.0,0.00031625,2]
[379105901,1755143440269,-165.37,0.00031716,80]
[379105903,1755143440279,-1468.5,0.00031807,2]
[379105905,1755143440288,-1501.76,0.00032172,2]
[379105907,1755143440297,-505.0,0.00032545,12]
[379105909,1755143440307,-354.61,0.00032806,120]
[379105911,1755143440317,-150.0,0.00032876,2]
[379105913,1755143440327,-639.59988632,0.00032876,120]
[379105915,1755143440337,-150.0,0.00032877,7]
[379105917,1755143440347,-150.0,0.00032877,7]
[379105919,1755143440356,-150.0,0.00032877,7]
[379105921,1755143440365,-150.0,0.00032877,7]
[379105923,1755143440375,-150.0,0.00032877,7]
[379105925,1755143440386,-150.0,0.00032877,7]
[379105927,1755143440395,-204.4011667,0.00032877,7]
[379105929,1755143440404,-153.7722139,0.00032877,7]
[379105931,1755143440413,-153.39508292,0.00032877,7]
[379105933,1755143440423,-150.0,0.00032877,7]
[379105935,1755143440433,-150.0,0.00032877,7]
[379105937,1755143440443,-150.0,0.00032877,7]
[379105939,1755143440452,-150.0,0.00032877,7]
[379105941,1755143440461,-150.0,0.00032877,7]
[379105943,1755143440471,-150.0,0.00032877,7]
[379105945,1755143440480,-150.0,0.00032877,7]
[379105947,1755143440489,-150.0,0.00032877,7]
[379105949,1755143440499,-150.0,0.00032877,7]
[379105951,1755143440508,-150.0,0.00032877,2]
[379105953,1755143440518,-500.0,0.00032877,7]
[379105955,1755143440527,-150.0,0.00032877,7]
[379105957,1755143440537,-150.0,0.00032877,7]
[379105959,1755143440547,-150.0,0.00032877,7]
[379105961,1755143440559,-150.0,0.00032877,7]
[379105963,1755143440568,-227.05885437,0.00032877,7]
[379105965,1755143440577,-1000.0,0.00032889,2]
[379105967,1755143440587,-160.0,0.00032994,2]
[379105969,1755143440596,-1000.0,0.00033129,2]
[379105971,1755143440605,-2500.0,0.00033129,2]
[379105973,1755143440615,-150.0,0.00033151,7]
[379105975,1755143440624,-220.16150683,0.00033151,7]
[379105977,1755143440633,-150.0,0.00033151,7]
[379105979,1755143440641,-150.0,0.00033151,7]
[379105981,1755143440651,-150.0,0.00033151,7]
[379105983,1755143440660,-167.57688397,0.00033151,7]
[379105985,1755143440669,-150.0,0.00033151,7]
[379105987,1755143440679,-150.0,0.00033151,7]
[379105989,1755143440689,-191.43726989,0.00033151,7]
[379105991,1755143440698,-150.0,0.00033151,7]
[379105993,1755143440707,-150.0,0.00033151,7]
[379105995,1755143440717,-150.0,0.00033151,7]
[379105997,1755143440727,-150.0,0.00033151,2]
[379105999,1755143440736,-500.0,0.00033151,7]
[379106001,1755143440745,-259.24293172,0.00033151,7]
[379106004,1755143440755,-284.54607827,0.00033151,7]
[379106006,1755143440764,-150.0,0.00033151,7]
[379106008,1755143440773,-500.0,0.00033186,5]
[379106010,1755143440782,-2210.272,0.00033229,35]
[379106011,1755143440791,-175.411,0.00033229,35]
[379106013,1755143440801,-200.0,0.00033425,7]
[379106015,1755143440810,-150.0,0.00033425,7]
[379106017,1755143440819,-200.88647158,0.00033425,7]
[379106019,1755143440828,-200.0,0.00033425,7]
[379106021,1755143440837,-150.0,0.00033425,7]
[379106023,1755143440846,-204.50412873,0.00033425,7]
[379106025,1755143440855,-200.0,0.00033425,2]
[379106027,1755143440865,-500.0,0.00033425,7]
[379106029,1755143440874,-150.0,0.00033425,7]
[379106031,1755143440882,-150.0,0.00033699,7]
[379106033,1755143440891,-150.0,0.00033699,7]
[379106035,1755143440900,-500.0,0.00033699,7]
[379106037,1755143440909,-150.0,0.00033699,7]
[379106039,1755143440919,-994.27376963,0.00033734,5]
[379106041,1755143440929,-200.0,0.00033973,7]
[379106043,1755143440938,-150.0,0.00033973,7]
[379106071,1755143441196,-500.0,0.00033973,7]
[379106074,1755143441206,-150.0,0.00033973,7]
[379106076,1755143441216,-3369.0,0.00034061,2]
[379106078,1755143441227,-2028.0,0.00034061,2]
[379106080,1755143441237,-810.0,0.00034061,2]
[379106081,1755143441247,-1254.0,0.00034061,2]
[379106083,1755143441257,-1655.0,0.00034061,2]
[379106085,1755143441266,-1296.0,0.00034061,2]
[379106087,1755143441276,-565.0,0.00034061,2]
[379106089,1755143441285,-982.0,0.00034061,2]
[379106091,1755143441294,-598.0,0.00034061,2]
[379106093,1755143441303,-4149.0,0.00034061,2]
[379106095,1755143441312,-6086.0,0.00034061,2]
[379106097,1755143441321,-21478.0,0.00034061,2]
[379106099,1755143441330,-150.0,0.00034246,2]
[379106101,1755143441339,-150.04,0.00034247,2]
[379106103,1755143441348,-250.0,0.00034247,7]
[379106105,1755143441358,-500.0,0.00034247,7]
[379106107,1755143441367,-250.0,0.00034247,7]
[379106109,1755143441376,-211.86673127,0.000343,7]
[379106111,1755143441385,-167.66245898,0.00034363,2]
[379106113,1755143441394,-500.0,0.00034521,7]
[379106115,1755143441403,-571.5,0.00034693,4]
[379106117,1755143441412,-500.0,0.00034795,7]
[379106119,1755143441421,-15760.772037,0.00035,5]
[379106121,1755143441430,-162.44,0.00035028,2]
[379106123,1755143441439,-500.0,0.00035069,7]
[379106125,1755143441448,-505.0,0.00035182,15]
[379106127,1755143441457,-168.0,0.000352,2]
[379106129,1755143441466,-500.0,0.00035343,7]
[379106131,1755143441476,-150.0,0.00035616,2]
[379106132,1755143441485,-500.0,0.00035617,7]
[379106134,1755143441494,-500.0,0.00035891,7]
[379106136,1755143441504,-354.61,0.00036087,120]
[379106138,1755143441513,-500.0,0.00036165,7]
[379106140,1755143441522,-1000.0,0.00036178,2]
[379106142,1755143441531,-164.0,0.0003638,2]
[379106144,1755143441540,-500.0,0.00036439,7]
[379106146,1755143441549,-6225.73,0.00036619,2]
[379106148,1755143441561,-169.13427603,0.0003666,15]
[379106150,1755143441570,-500.0,0.00036713,7]
[379106152,1755143441580,-8251.68945511,0.0003675,4]
[379106155,1755143441590,-155.888434,0.0003686,7]
[379106156,1755143441599,-155.888434,0.0003686,7]
[379106158,1755143441610,-151.322279,0.0003686,7]
[379106160,1755143441619,-151.0,0.0003686,7]
[379106162,1755143441628,-950.807844,0.0003686,7]
[379106164,1755143441638,-950.807844,0.0003686,7]
[379106166,1755143441647,-557.380901,0.0003686,7]
[379106169,1755143441660,-557.380901,0.0003686,7]
[379106171,1755143441669,-171.58734142,0.00036961,2]
[379106172,1755143441678,-8409.40368393,0.00036961,2]
[379106174,1755143441689,-150.0,0.00036986,2]
[379106176,1755143441698,-500.0,0.00036987,7]
[379106178,1755143441708,-24755.0683653,0.00037051,4]
[379106180,1755143441717,-3369.0,0.00037061,2]
[379106182,1755143441726,-2028.0,0.00037061,2]
[379106184,1755143441736,-810.0,0.00037061,2]
[379106186,1755143441745,-1254.0,0.00037061,2]
[379106188,1755143441754,-1655.0,0.00037061,2]
[379106190,1755143441764,-1296.0,0.00037061,2]
[379106192,1755143441773,-565.0,0.00037061,2]
[379106194,1755143441782,-982.0,0.00037061,2]
[379106196,1755143441792,-598.0,0.00037061,2]
[379106198,1755143441801,-4149.0,0.00037061,2]
[379106200,1755143441811,-6086.0,0.00037061,2]
[379106202,1755143441820,-21478.0,0.00037061,2]
[379106204,1755143441829,-165.37,0.00037082,120]
[379106206,1755143441838,-1500.0,0.00037166,120]
[379106208,1755143441847,-500.0,0.00037261,7]
[379106210,1755143441857,-150.0,0.00037291,2]
[379106212,1755143441866,-8251.68945511,0.00037337,4]
[379106214,1755143441875,-8409.40368387,0.00037347,2]
[379106216,1755143441884,-8122.95803657,0.0003735,5]
[379106218,1755143441893,-250.35,0.00037372,30]
[379106220,1755143441902,-293.20611014,0.00037461,2]
[379106222,1755143441911,-505.64091826,0.0003752,5]
[379106224,1755143441920,-500.0,0.00037535,7]
[379106226,1755143441929,-161.0,0.0003757,2]
[379106228,1755143441939,-343.88370942,0.00037631,2]
[379106230,1755143441948,-8251.68945511,0.00037723,4]
[379106232,1755143441957,-8409.40368387,0.00037733,2]
[379106234,1755143441966,-151.66,0.00037795,60]
[379106236,1755143441977,-394.56130871,0.00037801,2]
[379106238,1755143441986,-162.28793819,0.00037809,7]
[379106240,1755143441995,-505.0,0.00037818,17]
[379106242,1755143442005,-151.68,0.00037895,60]
[379106244,1755143442014,-152.59,0.00037949,60]
[379106246,1755143442023,-152.27,0.00037958,60]
[379106248,1755143442033,-445.23890799,0.00037971,2]
[379106250,1755143442042,-8251.68945511,0.0003799,4]
[379106252,1755143442051,-156.0,0.00038,120]
[379106254,1755143442061,-1000.0,0.00038,9]
[379106256,1755143442069,-1000.0,0.00038,8]
[379106258,1755143442078,-1000.0,0.00038,7]
[379106260,1755143442087,-1000.0,0.00038,7]
[379106262,1755143442096,-1095.0,0.00038,6]
[379106264,1755143442106,-1000.0,0.00038,5]
[379106266,1755143442118,-1000.0,0.00038,4]
[379106268,1755143442127,-1000.0,0.00038,4]
[379106270,1755143442136,-152.59,0.00038049,60]
[379106272,1755143442145,-152.27,0.00038058,60]
[379106274,1755143442155,-8409.40368387,0.00038118,2]
[379106276,1755143442164,-495.91650727,0.00038141,2]
[379106278,1755143442173,-152.59,0.00038149,60]
[379106280,1755143442182,-152.59,0.00038149,60]
[379106281,1755143442192,-152.27,0.00038158,60]
[379106282,1755143442201,-1507.0,0.000382,7]
[379106283,1755143442211,-152.59,0.00038249,60]
[379106284,1755143442220,-152.27,0.00038258,60]
[379106285,1755143442229,-546.59410655,0.00038312,2]
[379106286,1755143442238,-152.59,0.00038349,60]
[379106287,1755143442249,-150.0,0.00038356,2]
[379106288,1755143442258,-8251.68945511,0.0003839,4]
[379106289,1755143442269,-2000.0,0.000384,2]
[379106290,1755143442279,-152.59,0.00038449,120]
[379106291,1755143442288,-597.27170584,0.00038482,2]
[379106292,1755143442298,-8409.40368387,0.00038504,2]
[379106293,1755143442307,-152.59,0.00038549,120]
[379106294,1755143442316,-152.59,0.00038649,120]
[379106295,1755143442325,-647.94930512,0.00038652,2]
[379106296,1755143442334,-171.58734141,0.00038698,2]
[379106297,1755143442343,-41258.4472755,0.00038731,4]
[379106298,1755143442352,-152.61,0.00038749,120]
[379106300,1755143442362,-158.0,0.0003875,2]
[379106301,1755143442371,-698.6269044,0.00038822,2]
[379106303,1755143442380,-248.5223,0.00038888,30]
[379106305,1755143442390,-8409.40368387,0.0003889,2]
[379106307,1755143442400,-749.30450369,0.00038992,2]
[379106309,1755143442409,-10532.59728076,0.00039019,120]
[379106311,1755143442419,-1318.0,0.00039144,2]
[379106313,1755143442428,-799.98210297,0.00039162,2]
[379106315,1755143442438,-8409.40368387,0.00039276,2]
[379106317,1755143442448,-850.65970225,0.00039332,2]
[379106319,1755143442458,-8251.68945511,0.00039357,4]
[379106321,1755143442468,-354.61,0.00039368,120]
[379106323,1755143442478,-1000.0,0.00039467,2]
[379106325,1755143442488,-901.33730154,0.00039503,2]
[379106328,1755143442498,-1432.81647465,0.00039533,11]
[379106331,1755143442508,-571.5,0.00039595,7]
[379106333,1755143442518,-8409.40368387,0.00039661,2]
[379106335,1755143442530,-952.01490082,0.00039673,2]
[379106337,1755143442540,-150.0,0.00039726,2]
[379106339,1755143442550,-164.747116,0.00039726,15]
[379106341,1755143442559,-1002.6925001,0.00039843,2]
[379106344,1755143442569,-1115.20280362,0.00039874,20]
[379106346,1755143442578,-1147.56872931,0.00039874,20]
[379106348,1755143442587,-150.0,0.00039929,2]
[379106350,1755143442596,-154.0,0.0003993,2]
[379106352,1755143442606,-24755.0683653,0.0003999,4]
[379106354,1755143442615,-5000.0,0.0004,120]
[379106356,1755143442623,-1266.9786,0.0004,120]
[379106359,1755143442635,-270.73,0.0004,120]
[379106361,1755143442645,-250.66,0.0004,120]
[379106363,1755143442654,-803.65,0.0004,120]
[379106365,1755143442663,-1000.0,0.0004,30]
[379106367,1755143442673,-1000.0,0.0004,30]
[379106370,1755143442693,-1000.0,0.0004,30]
[379106373,1755143442712,-323.57013385,0.0004,30]
[379106376,1755143442730,-9355.32,0.0004,120]
[379106379,1755143442750,-211.86673127,0.0004,120]
[379106381,1755143442766,-2003.61270004,0.0004,4]
[379106384,1755143442783,-27150.0,0.0004,2]
[379106387,1755143442801,-577.8,0.0004,5]
[379106391,1755143442821,-500.0,0.0004,120]
[379106393,1755143442841,-150.0,0.00040001,2]
[379106396,1755143442858,-1053.37009939,0.00040013,2]
[379106399,1755143442877,-8409.40368387,0.00040047,15]
[379106402,1755143442892,-16503.3789102,0.00040051,4]
[379106405,1755143442908,-18641.3664773,0.00040051,4]
[379106407,1755143442924,-3369.0,0.00040061,2]
[379106410,1755143442940,-2028.0,0.00040061,2]
[379106413,1755143442959,-810.0,0.00040061,2]
[379106415,1755143442973,-1254.0,0.00040061,2]
[379106418,1755143442989,-565.0,0.00040061,2]
[379106420,1755143443007,-210.42,0.00040061,2]
[379106423,1755143443025,-4149.0,0.00040061,2]
[379106426,1755143443047,-6086.0,0.00040061,2]
[379106429,1755143443063,-14798.654,0.00040061,2]
[379106431,1755143443078,-150.0,0.00040067,2]
[379106434,1755143443092,-150.0,0.00040075,2]
[379106437,1755143443107,-150.0,0.0004008,2]
[379106439,1755143443126,-150.0,0.00040081,2]
[379106442,1755143443143,-150.0,0.00040093,2]
[379106446,1755143443159,-150.0,0.00040093,2]
[379106451,1755143443175,-150.0,0.00040101,2]
[379106455,1755143443191,-150.0,0.00040126,2]
[379106457,1755143443207,-150.0,0.00040133,2]
[379106460,1755143443222,-150.0,0.0004014,2]
[379106462,1755143443238,-150.0,0.00040141,2]
[379106465,1755143443252,-150.0,0.0004015,2]
[379106467,1755143443268,-150.0,0.00040155,2]
[379106470,1755143443284,-150.0,0.00040169,2]
[379106473,1755143443299,-150.0,0.0004018,2]
[379106475,1755143443314,-1104.04769867,0.00040183,2]
[379106478,1755143443329,-150.0,0.00040194,2]
[379106480,1755143443344,-150.0,0.00040198,2]
[379106483,1755143443359,-8251.68945511,0.00040203,4]
[379106486,1755143443374,-6213.78882576,0.00040203,4]
[379106488,1755143443389,-24755.0683653,0.00040214,4]
[379106491,1755143443404,-24855.155303,0.00040214,4]
[379106494,1755143443419,-8251.68945511,0.0004022,4]
[379106497,1755143443434,-6213.78882576,0.0004022,4]
[379106499,1755143443450,-150.0,0.00040232,2]
[379106502,1755143443466,-54662.27793264,0.00040233,24]
[379106505,1755143443482,-150.0,0.00040242,2]
[379106507,1755143443497,-150.0,0.00040247,2]
[379106510,1755143443512,-150.0,0.00040248,2]
[379106513,1755143443528,-150.0,0.00040254,2]
[379106515,1755143443544,-150.0,0.00040263,2]
[379106518,1755143443559,-150.0,0.0004027,2]
[379106520,1755143443573,-150.0,0.00040283,2]
[379106523,1755143443590,-8251.68945511,0.0004029,4]
[379106526,1755143443606,-12427.5776515,0.0004029,4]
[379106528,1755143443622,-150.0,0.00040291,2]
[379106531,1755143443637,-932.08180922,0.000403,120]
[379106533,1755143443653,-932.08180922,0.000403,120]
[379106536,1755143443670,-932.08180922,0.000403,120]
[379106539,1755143443686,-932.08180922,0.000403,120]
[379106541,1755143443701,-932.08180922,0.000403,120]
[379106544,1755143443717,-932.08180922,0.000403,120]
[379106547,1755143443734,-932.08180922,0.000403,120]
[379106549,1755143443748,-932.08180922,0.000403,120]
[379106552,1755143443763,-932.08180922,0.000403,120]
[379106555,1755143443777,-150.0,0.00040307,2]
[379106557,1755143443793,-1000.0,0.00040313,7]
[379106560,1755143443809,-150.0,0.00040318,2]
[379106562,1755143443824,-150.0,0.00040321,2]
[379106565,1755143443839,-150.0,0.00040329,2]
[379106568,1755143443855,-1154.72529795,0.00040353,2]
[379106570,1755143443870,-159.34830223,0.00040353,2]
[379106573,1755143443885,-150.0,0.00040354,2]
[379106575,1755143443900,-150.0,0.00040369,7]
[379106578,1755143443914,-150.0,0.00040379,2]
[379106581,1755143443930,-150.0,0.00040386,2]
[379106583,1755143443946,-150.0,0.00040387,2]
[379106586,1755143443961,-150.0,0.00040396,2]
[379106588,1755143443976,-150.0,0.00040397,2]
[379106591,1755143443991,-150.0,0.000404,2]
[379106593,1755143444006,-8251.68945511,0.00040414,4]
[379106596,1755143444022,-6213.78882576,0.00040414,4]
[379106599,1755143444037,-150.0,0.0004042,2]
[379106601,1755143444052,-150.0,0.00040422,2]
[379106604,1755143444067,-150.0,0.00040426,2]
[379106606,1755143444082,-150.0,0.00040428,2]
[379106609,1755143444097,-8409.40368387,0.00040433,15]
[379106611,1755143444112,-932.08180922,0.00040434,120]
[379106614,1755143444128,-150.0,0.00040435,2]
[379106617,1755143444142,-184.39342979,0.00040435,120]
[379106619,1755143444157,-171.58734141,0.00040435,28]
[379106622,1755143444172,-150.0,0.00040438,2]
[379106624,1755143444187,-1000.0,0.00040438,7]
[379106627,1755143444202,-150.0,0.0004044,2]
[379106629,1755143444217,-150.0,0.00040441,2]
[379106632,1755143444232,-150.0,0.00040443,2]
[379106635,1755143444248,-150.0,0.00040447,2]
[379106637,1755143444262,-1000.0,0.00040452,7]